bitfinex/quotes_SOLUSD_20251019
["timestamp","ask_amount","ask_price","bid_price","bid_amount"]
[1760885288162,11.53647521,191.29,191.25,5.91875816]
[1760885288546,10.87647521,191.29,191.26,0.69]
[1760885288950,11.07647521,191.3,191.27,0.69]
[1760885289153,0.66,191.29,191.25,31.90875816]
[1760885289350,0.66,191.28,191.25,31.90875816]
[1760885289560,0.66,191.27,191.25,26.68]
[1760885290169,0.66,191.29,191.25,31.908687]
[1760885290371,0.66,191.28,191.25,31.908687]
[1760885291264,11.74647521,191.3,191.25,32.588687]
[1760885291464,0.67,191.29,191.25,32.588687]
[1760885292971,0.67,191.28,191.25,31.908687]
[1760885293174,16.30395581,191.3,191.25,32.588687]
[1760885293472,0.67,191.29,191.25,32.588687]
[1760885295772,16.30395581,191.3,191.25,31.908687]
[1760885295974,0.72,191.29,191.25,32.598687]
[1760885296670,10.87647521,191.28,191.25,32.598687]
[1760885297049,10.87647521,191.28,191.25,5.918687]
[1760885297867,10.87647521,191.28,191.26,0.69]
[1760885298184,10.87647521,191.29,191.26,0.69]
[1760885298859,10.87647521,191.29,191.26,5.91843601]
[1760885299061,0.72,191.28,191.26,5.22843601]
[1760885299370,10.87647521,191.29,191.23,26.68]
[1760885299371,10.87647521,191.26,191.23,26.68]
[1760885299574,16.10417161,191.29,191.23,26.68]
[1760885299575,0.72,191.25,191.23,26.68]
[1760885300179,10.87647521,191.26,191.23,0.69]
[1760885300363,10.87647521,191.28,191.24,0.69]
[1760885300679,11.07647521,191.3,191.25,0.69]
[1760885300973,11.07647521,191.3,191.22,44.9632529]
[1760885300974,11.07647521,191.3,191.26,5.22848478]
[1760885301475,11.07647521,191.3,191.27,0.69]
[1760885301854,11.79647521,191.3,191.27,0.69]
[1760885302056,11.79647521,191.3,191.26,5.22848478]
[1760885302371,11.79647521,191.3,191.26,5.91848478]
[1760885302774,11.07647521,191.3,191.27,0.69]
[1760885303774,11.07647521,191.3,191.26,5.22848478]
[1760885303974,11.07647521,191.3,191.26,5.91848478]
[1760885303975,11.79647521,191.3,191.26,5.91848478]
[1760885306071,0.72,191.29,191.26,5.22848478]
[1760885307583,11.07647521,191.3,191.26,5.91848478]
[1760885307988,11.79647521,191.3,191.26,5.91848478]
[1760885309086,0.72,191.29,191.26,5.22848478]
[1760885310787,11.07647521,191.3,191.26,5.22848478]
[1760885310974,11.79647521,191.3,191.26,5.91848478]
[1760885311585,11.07647521,191.3,191.26,5.22848478]
[1760885311891,0.72,191.29,191.26,5.22848478]
[1760885312189,0.72,191.28,191.21,27.35]
[1760885312381,0.72,191.27,191.21,27.35]
[1760885313086,0.72,191.27,191.22,5.91957849]
[1760885313274,0.72,191.27,191.22,5.22957849]
[1760885313472,0.72,191.27,191.23,0.69]
[1760885314065,0.72,191.26,191.24,5.22903158]
[1760885314491,0.72,191.25,191.21,27.35]
[1760885315357,0.72,191.25,191.21,32.57961722]
[1760885316989,0.72,191.25,191.22,0.69]
[1760885317165,10.87647521,191.27,191.23,5.22930502]
[1760885317360,0.72,191.26,191.23,5.22930502]
[1760885319392,10.87647521,191.28,191.24,0.69]
[1760885319998,0.72,191.27,191.23,0.69]
[1760885320993,10.87647521,191.28,191.24,5.91903158]
[1760885321194,10.87647521,191.28,191.25,0.69]
[1760885321597,22.88,191.28,191.26,0.69]
[1760885322395,22.88,191.28,191.24,5.91903158]
[1760885322570,22.88,191.28,191.25,0.69]
[1760885322772,23.6,191.28,191.24,5.91903158]
[1760885326483,22.88,191.28,191.24,5.91903158]
[1760885326797,0.68,191.27,191.22,5.22957849]
[1760885326976,0.68,191.26,191.22,5.22957849]
[1760885327288,10.87647521,191.27,191.23,0.66]
[1760885327488,11.55647521,191.27,191.23,0.66]
[1760885328295,11.55647521,191.27,191.23,5.8891134]
[1760885328785,0.68,191.26,191.23,5.8891134]
[1760885329570,0.68,191.26,191.22,5.22957849]
[1760885329979,0.68,191.26,191.22,5.88957849]
[1760885330984,0.68,191.26,191.22,21.60996521]
[1760885331382,0.72,191.25,191.22,20.94996521]
[1760885331590,10.87647521,191.27,191.22,20.94996521]
[1760885331591,0.72,191.26,191.22,21.61996521]
[1760885331980,0.72,191.25,191.22,20.94996521]
[1760885332276,16.10471791,191.27,191.22,15.72038672]
[1760885332595,0.72,191.24,191.18,31.87067266]
[1760885332800,10.87647521,191.25,191.2,0.67]
[1760885333181,0.72,191.24,191.2,0.67]
[1760885333596,0.72,191.24,191.21,5.22985199]
[1760885333987,10.87647521,191.25,191.21,5.22985199]
[1760885333988,0.72,191.27,191.22,0.67]
[1760885334193,10.87647521,191.26,191.22,0.67]
[1760885334494,0.72,191.26,191.22,0.67]
[1760885334676,0.72,191.25,191.22,0.67]
[1760885335986,0.72,191.25,191.21,16.1063272]
[1760885336187,0.72,191.25,191.21,16.7763272]
[1760885340302,0.72,191.25,191.22,0.67]
[1760885340902,0.72,191.24,191.21,16.1063272]
[1760885341087,0.72,191.24,191.21,16.7763272]
[1760885342899,0.72,191.26,191.21,16.1063272]
[1760885343106,0.72,191.25,191.21,16.7763272]
[1760885343293,0.72,191.25,191.22,5.89940272]
[1760885344102,0.72,191.25,191.22,5.22940272]
[1760885344301,16.10478359,191.27,191.22,5.89940272]
[1760885344493,0.72,191.26,191.22,5.89940272]
[1760885345180,0.72,191.26,191.23,5.89923779]
[1760885346111,10.87647521,191.27,191.23,5.89923779]
[1760885346284,11.59647521,191.27,191.23,5.89923779]
[1760885346605,0.72,191.26,191.23,5.89923779]
[1760885348206,10.87647521,191.27,191.22,5.22957849]
[1760885348396,22.88,191.28,191.24,0.67]
[1760885348594,10.87647521,191.29,191.24,13.74513315]
[1760885348905,0.2,191.3,191.25,1.19287581]
[1760885349085,0.2,191.3,191.26,27.31]
[1760885349286,0.2,191.3,191.27,1.19282114]
[1760885349492,0.2,191.3,191.28,0.67]
[1760885349906,0.2,191.3,191.28,2.76484406]
[1760885350096,0.2,191.3,191.29,0.67]
[1760885350297,0.2,191.3,191.29,5.8976648]
[1760885353808,0.2,191.3,191.29,5.2276648]
[1760885354391,0.2,191.3,191.29,5.9376648]
[1760885356690,0.2,191.31,191.29,6.46043128]
[1760885356890,0.2,191.34,191.29,6.46043128]
[1760885356891,0.2,191.34,191.3,0.71]
[1760885357212,0.2,191.34,191.31,26.62]
[1760885357386,0.2,191.34,191.32,0.71]
[1760885357787,0.2,191.34,191.32,1.2326845]
[1760885358413,0.2,191.34,191.33,0.71]
[1760885358994,0.2,191.34,191.33,5.93657189]
[1760885359209,0.2,191.34,191.33,8.0309772]
[1760885361717,0.2,191.34,191.33,30.9109772]
[1760885361914,0.2,191.34,191.33,30.2009772]
[1760885362313,0.2,191.34,191.33,30.9109772]
[1760885363314,0.2,191.34,191.33,30.2009772]
[1760885363690,0.87,191.34,191.33,7.3209772]
[1760885363895,0.87,191.34,191.29,5.22740167]
[1760885364116,0.67,191.33,191.29,5.22740167]
[1760885364307,0.67,191.32,191.29,5.22740167]
[1760885364507,0.67,191.31,191.29,5.22740167]
[1760885364805,0.67,191.33,191.29,5.22740167]
[1760885365000,0.67,191.32,191.29,5.22740167]
[1760885365220,0.67,191.31,191.29,5.22740167]
[1760885365404,0.2,191.34,191.3,0.71]
[1760885365599,0.2,191.34,191.31,27.33]
[1760885365820,0.87,191.34,191.31,26.62]
[1760885366118,0.2,191.34,191.31,26.62]
[1760885366320,0.67,191.33,191.31,26.62]
[1760885366501,0.2,191.34,191.31,26.62]
[1760885366502,0.67,191.32,191.31,26.62]
[1760885367223,0.67,191.32,191.3,5.22713515]
[1760885367511,0.67,191.31,191.3,5.22713515]
[1760885368721,0.2,191.34,191.3,5.22713515]
[1760885368915,0.67,191.33,191.3,5.22713515]
[1760885369521,0.67,191.32,191.29,26.62]
[1760885369707,0.2,191.34,191.3,0.71]
[1760885369902,0.2,191.34,191.31,0.71]
[1760885370110,0.2,191.34,191.32,27.33]
[1760885370317,0.2,191.34,191.33,26.62]
[1760885370618,0.2,191.34,191.33,27.33]
[1760885370917,0.2,191.34,191.33,32.55657189]
[1760885372613,0.2,191.34,191.33,31.84657189]
[1760885373020,0.2,191.34,191.33,32.55657189]
[1760885373409,0.2,191.34,191.33,31.84657189]
[1760885374311,0.2,191.34,191.33,32.55657189]
[1760885374510,0.2,191.34,191.33,34.65119655]
[1760885377720,0.2,191.34,191.33,57.53119655]
[1760885378934,0.2,191.34,191.33,56.82119655]
[1760885380519,0.2,191.34,191.33,56.80119655]
[1760885381735,0.87,191.34,191.33,56.80119655]
[1760885382121,0.2,191.34,191.33,56.80119655]
[1760885383135,0.87,191.34,191.33,30.20119655]
[1760885383339,0.87,191.34,191.33,54.70657189]
[1760885383717,0.87,191.34,191.33,31.82657189]
[1760885384337,0.2,191.34,191.33,31.82657189]
[1760885385118,0.2,191.34,191.33,33.92141595]
[1760885385419,0.91,191.34,191.33,33.92141595]
[1760885386941,0.91,191.34,191.33,31.82657189]
[1760885387819,0.91,191.34,191.32,5.22683547]
[1760885388023,0.71,191.33,191.32,5.22683547]
[1760885391643,0.71,191.33,191.31,31.82707494]
[1760885391949,0.71,191.32,191.31,31.82707494]
[1760885393545,0.2,191.34,191.31,45.57487066]
[1760885393744,0.2,191.34,191.32,0.68]
[1760885394133,0.2,191.34,191.31,44.89487066]
[1760885394333,0.71,191.33,191.31,44.89487066]
[1760885395348,0.71,191.33,191.31,31.82707494]
[1760885395544,0.2,191.34,191.31,31.82707494]
[1760885395735,0.71,191.33,191.31,31.82707494]
[1760885396136,0.71,191.32,191.31,31.82707494]
[1760885396731,0.71,191.32,191.31,5.22707494]
[1760885397335,0.2,191.34,191.31,5.22707494]
[1760885397750,0.91,191.34,191.31,5.22707494]
[1760885397952,0.71,191.33,191.31,5.22707494]
[1760885399955,0.2,191.34,191.31,5.22707494]
[1760885400249,0.91,191.34,191.31,5.22707494]
[1760885401153,0.2,191.34,191.31,5.90707494]
[1760885401663,0.2,191.34,191.31,18.97487066]
[1760885402334,0.2,191.34,191.33,5.22657189]
[1760885402553,0.2,191.34,191.33,31.80657189]
[1760885402748,0.2,191.34,191.33,32.48657189]
[1760885403144,0.2,191.34,191.33,31.80657189]
[1760885403345,0.2,191.34,191.33,32.48657189]
[1760885403952,0.2,191.37,191.33,45.55300161]
[1760885404138,0.2,191.37,191.34,0.68]
[1760885404550,0.2,191.37,191.31,22.88]
[1760885404756,0.71,191.36,191.31,31.80711828]
[1760885405069,0.71,191.35,191.31,31.80711828]
[1760885405365,0.91,191.37,191.31,45.554914]
[1760885405581,0.71,191.36,191.31,45.554914]
[1760885405868,0.71,191.35,191.31,31.80711828]
[1760885406067,0.71,191.34,191.31,31.80711828]
[1760885406235,0.71,191.33,191.31,31.80711828]
[1760885406558,10.87647521,191.36,191.31,31.80711828]
[1760885406765,0.71,191.35,191.31,31.80711828]
[1760885407268,0.71,191.34,191.31,31.80711828]
[1760885407446,0.71,191.33,191.31,31.80711828]
[1760885408148,0.71,191.32,191.31,31.80711828]
[1760885409158,0.71,191.34,191.31,31.80711828]
[1760885409363,11.07647521,191.37,191.31,31.80711828]
[1760885409557,0.71,191.36,191.32,0.68]
[1760885409758,11.07647521,191.37,191.33,0.68]
[1760885409966,0.71,191.36,191.31,18.294914]
[1760885410167,11.07647521,191.37,191.31,18.294914]
[1760885410168,0.71,191.35,191.32,26.58]
[1760885410346,0.71,191.34,191.31,5.22711828]
[1760885410548,0.67,191.36,191.31,32.46711828]
[1760885410742,0.67,191.35,191.31,26.58]
[1760885410949,0.67,191.34,191.31,26.58]
[1760885411172,0.67,191.33,191.31,26.58]
[1760885412345,0.67,191.33,191.31,31.80698195]
[1760885412851,0.67,191.33,191.31,5.22698195]
[1760885414270,0.66,191.35,191.31,5.22698195]
[1760885414573,0.66,191.34,191.31,5.22698195]
[1760885415072,0.66,191.33,191.31,5.22698195]
[1760885416365,0.66,191.35,191.31,5.22698195]
[1760885416558,0.66,191.34,191.31,5.22698195]
[1760885416764,5.22586735,191.36,191.3,26.58]
[1760885416961,5.22586735,191.36,191.25,13.0715378]
[1760885416962,11.53647521,191.33,191.27,5.22821142]
[1760885417176,22.88,191.35,191.25,5.22875816]
[1760885417177,10.87647521,191.31,191.25,5.22875816]
[1760885417472,10.87647521,191.31,191.24,26.58]
[1760885417680,10.87647521,191.29,191.24,26.58]
[1760885417861,0.66,191.28,191.24,26.58]
[1760885418180,0.66,191.28,191.23,26.58]
[1760885418181,11.53647521,191.27,191.23,26.58]
[1760885418391,0.66,191.26,191.23,26.58]
[1760885420359,0.66,191.26,191.22,31.80955346]
[1760885420756,0.66,191.26,191.22,32.50955346]
[1760885421466,10.87647521,191.27,191.22,31.80955346]
[1760885421467,0.66,191.25,191.22,31.80955346]
[1760885421870,11.53647521,191.27,191.22,32.50955346]
[1760885422062,0.66,191.26,191.22,32.50955346]
[1760885422777,0.66,191.26,191.22,31.80955346]
[1760885422982,0.66,191.25,191.2,5.22985645]
[1760885423285,0.66,191.24,191.21,26.58]
[1760885423575,10.87647521,191.25,191.21,26.58]
[1760885423759,10.87647521,191.25,191.22,0.7]
[1760885424077,10.87647521,191.25,191.21,26.58]
[1760885424078,11.53647521,191.25,191.21,26.58]
[1760885424278,11.53647521,191.25,191.21,27.28]
[1760885424676,0.66,191.24,191.21,26.58]
[1760885425180,0.66,191.24,191.21,31.80981557]
[1760885425368,10.87647521,191.25,191.21,32.50981557]
[1760885426169,10.87647521,191.25,191.22,0.7]
[1760885426776,10.87647521,191.25,191.23,0.7]
[1760885427159,10.87647521,191.25,191.22,5.22939022]
[1760885427359,10.87647521,191.25,191.22,5.92939022]
[1760885428576,0.66,191.27,191.22,5.92939022]
[1760885428577,10.87647521,191.26,191.22,5.92939022]
[1760885428777,11.53647521,191.26,191.22,5.92939022]
[1760885430179,22.88,191.28,191.22,5.22939022]
[1760885430384,23.54,191.31,191.23,0.7]
[1760885430561,10.87647521,191.3,191.24,26.58]
[1760885430865,0.66,191.29,191.24,26.58]
[1760885431169,0.66,191.28,191.24,27.28]
[1760885431360,0.66,191.3,191.25,0.7]
[1760885431561,22.88,191.3,191.26,0.7]
[1760885431878,0.66,191.34,191.28,5.2279381]
[1760885432070,10.87647521,191.33,191.28,5.9279381]
[1760885432392,0.66,191.32,191.28,5.9279381]
[1760885432584,0.66,191.31,191.28,5.2279381]
[1760885432761,0.66,191.3,191.28,26.58]
[1760885432960,0.66,191.31,191.28,26.58]
[1760885435582,0.66,191.31,191.28,31.80789534]
[1760885436182,0.66,191.3,191.28,26.58]
[1760885436386,0.66,191.29,191.28,26.58]
[1760885437083,0.66,191.29,191.26,31.80836588]
[1760885437276,0.66,191.31,191.27,0.7]
[1760885437478,0.66,191.3,191.26,31.80836588]
[1760885437670,0.66,191.3,191.26,32.50836588]
[1760885440579,0.66,191.3,191.26,31.80836588]
[1760885440781,10.87647521,191.31,191.28,5.2279381]
[1760885440980,10.87647521,191.31,191.29,0.7]
[1760885441486,11.53647521,191.33,191.29,0.7]
[1760885442169,11.53647521,191.33,191.27,5.92821142]
[1760885442371,10.87647521,191.31,191.27,5.92821142]
[1760885442571,0.66,191.31,191.27,5.92821142]
[1760885443891,11.59647521,191.33,191.28,5.89781589]
[1760885444091,10.87647521,191.33,191.29,0.67]
[1760885444277,10.87647521,191.33,191.3,0.67]
[1760885444478,11.59647521,191.33,191.28,5.89781589]
[1760885445193,0.72,191.32,191.28,5.89781589]
[1760885446284,0.72,191.32,191.28,5.22781589]
[1760885446790,10.87647521,191.33,191.28,5.22781589]
[1760885446975,0.72,191.31,191.28,5.22781589]
[1760885447176,0.72,191.31,191.28,0.67]
[1760885447603,10.87647521,191.33,191.28,0.67]
[1760885447802,0.72,191.32,191.28,0.67]
[1760885448209,0.72,191.31,191.27,5.22821142]
[1760885448513,0.72,191.31,191.27,5.89821142]
[1760885448671,10.87647521,191.33,191.27,5.22821142]
[1760885448873,11.59647521,191.33,191.28,0.67]
[1760885449076,10.87647521,191.33,191.28,0.67]
[1760885449376,0.72,191.32,191.28,5.89771469]
[1760885450086,10.87647521,191.33,191.28,5.89771469]
[1760885450272,0.72,191.32,191.28,5.22771469]
[1760885450476,0.72,191.31,191.26,32.47823617]
[1760885450694,0.72,191.3,191.26,32.47823617]
[1760885450995,10.87647521,191.31,191.27,0.67]
[1760885451499,10.87647521,191.31,191.27,5.8979943]
[1760885451500,0.72,191.31,191.27,5.8979943]
[1760885451891,0.72,191.3,191.27,5.2279943]
[1760885452079,10.87647521,191.32,191.27,5.2279943]
[1760885452279,10.87647521,191.3,191.27,5.2279943]
[1760885452479,11.59647521,191.3,191.27,5.2279943]
[1760885452801,5.22697047,191.32,191.27,5.2279943]
[1760885453007,10.87647521,191.3,191.27,5.8979943]
[1760885453199,11.59647521,191.3,191.27,5.2279943]
[1760885455510,0.72,191.29,191.26,26.58]
[1760885455901,0.72,191.29,191.26,27.25]
[1760885456492,0.72,191.29,191.26,32.47841102]
[1760885456700,11.59647521,191.3,191.26,32.47841102]
[1760885459012,10.87647521,191.32,191.27,0.67]
[1760885459193,11.59647521,191.32,191.27,0.67]
[1760885459395,11.59647521,191.32,191.28,0.67]
[1760885459808,3.45250306,191.34,191.29,0.67]
[1760885460113,35.94356424,191.38,191.29,27.25]
[1760885460114,10.87647521,191.35,191.29,27.25]
[1760885460310,10.87647521,191.35,191.3,0.67]
[1760885460518,0.72,191.36,191.3,0.67]
[1760885460696,11.07647521,191.37,191.3,0.67]
[1760885460888,16.3020164,191.37,191.31,5.22711828]
[1760885461094,0.72,191.36,191.32,26.56]
[1760885461294,0.72,191.35,191.32,26.56]
[1760885461495,11.07647521,191.37,191.33,0.67]
[1760885461709,11.79647521,191.37,191.33,0.67]
[1760885463015,11.07647521,191.37,191.34,0.67]
[1760885463504,11.07647521,191.37,191.33,5.22657189]
[1760885463817,11.79647521,191.37,191.33,5.89657189]
[1760885463996,11.79647521,191.37,191.34,0.67]
[1760885464192,11.07647521,191.37,191.34,0.67]
[1760885464494,11.07647521,191.37,191.33,5.22657189]
[1760885464705,11.07647521,191.37,190.86,63.45295301]
[1760885464706,23.6,191.36,191.2,37.22588301]
[1760885464886,23.6,191.36,191.21,0.67]
[1760885464887,11.59647521,191.35,191.21,0.67]
[1760885465085,10.87647521,191.33,191.26,5.22848478]
[1760885465290,10.87647521,191.31,191.27,0.67]
[1760885465597,0.72,191.31,191.26,31.78848478]
[1760885465803,0.72,191.31,191.26,32.45848478]
[1760885465998,0.72,191.3,191.26,32.45848478]
[1760885466514,10.87647521,191.29,191.23,35.95264151]
[1760885466724,0.72,191.28,191.24,31.78903158]
[1760885466892,16.10332028,191.32,191.24,31.78903158]
[1760885467088,0.72,191.31,191.24,31.78903158]
[1760885467398,10.87647521,191.29,191.24,31.78903158]
[1760885467613,11.59647521,191.29,191.25,0.67]
[1760885467997,0.72,191.28,191.24,31.78903158]
[1760885468902,0.72,191.27,191.24,31.78903158]
[1760885469623,0.72,191.27,191.24,5.22903158]
[1760885469790,10.87647521,191.29,191.24,5.22903158]
[1760885469791,11.59647521,191.29,191.24,5.22903158]
[1760885470001,11.59647521,191.29,191.25,0.67]
[1760885470201,0.72,191.29,191.24,5.22903158]
[1760885470401,0.72,191.29,191.25,0.67]
[1760885470594,10.87647521,191.27,191.24,5.22903158]
[1760885470803,10.87647521,191.27,191.24,5.91903158]
[1760885473491,11.57647521,191.27,191.24,5.22903158]
[1760885473716,10.87647521,191.28,191.25,0.69]
[1760885473920,10.87647521,191.28,191.23,31.78928826]
[1760885474116,0.72,191.27,191.21,5.2296334]
[1760885474322,10.87647521,191.25,191.21,5.8996334]
[1760885474515,11.59647521,191.25,191.21,5.8996334]
[1760885474724,0.72,191.27,191.22,0.67]
[1760885475016,10.87647521,191.28,191.22,0.67]
[1760885476200,11.59647521,191.28,191.23,5.22930502]
[1760885476398,22.88,191.29,191.24,0.67]
[1760885476700,11.59647521,191.31,191.24,27.23]
[1760885476914,11.59647521,191.31,191.25,0.67]
[1760885477119,134.88597712,191.36,191.25,0.67]
[1760885477309,0.72,191.35,191.25,0.67]
[1760885477711,11.79647521,191.37,191.25,0.67]
[1760885477918,0.2,191.37,191.27,22.88]
[1760885478116,0.2,191.37,191.29,18.2968268]
[1760885478515,23.08,191.37,191.3,0.67]
[1760885478715,0.2,191.37,191.3,0.67]
[1760885479318,0.2,191.37,191.31,26.56]
[1760885479518,0.2,191.37,191.32,0.67]
[1760885479716,0.2,191.37,191.34,22.88]
[1760885479900,0.2,191.37,191.35,27.23]
[1760885480305,0.2,191.37,191.36,5.8957525]
[1760885480512,0.2,191.37,191.36,0.67]
[1760885480728,0.2,191.37,191.36,27.23]
[1760885482311,0.2,191.37,191.36,32.4557525]
[1760885482713,0.2,191.37,191.36,5.2257525]
[1760885482920,0.2,191.37,191.36,31.7857525]
[1760885484416,0.2,191.37,191.36,32.4557525]
[1760885485622,0.2,191.37,191.36,31.7857525]
[1760885489532,0.92,191.37,191.34,5.22622674]
[1760885489715,0.72,191.36,191.33,26.54]
[1760885491527,0.2,191.37,191.34,5.22629873]
[1760885491729,0.92,191.37,191.34,5.22629873]
[1760885492930,0.72,191.36,191.34,5.22629873]
[1760885494131,0.2,191.37,191.34,5.22629873]
[1760885494332,0.92,191.37,191.34,5.22629873]
[1760885494537,0.92,191.37,191.34,18.29204556]
[1760885495335,0.2,191.37,191.34,18.29204556]
[1760885495519,0.92,191.37,191.34,18.29204556]
[1760885495714,0.2,191.37,191.34,18.29204556]
[1760885496037,0.2,191.37,191.34,18.96204556]
[1760885497720,0.92,191.37,191.34,18.29204556]
[1760885497935,0.72,191.36,191.34,5.22629873]
[1760885498132,0.2,191.37,191.34,5.22629873]
[1760885498539,0.92,191.37,191.34,5.22629873]
[1760885498950,0.2,191.37,191.34,5.22629873]
[1760885499821,0.2,191.37,191.34,5.89629873]
[1760885500626,0.2,191.37,191.36,5.2257525]
[1760885501121,0.92,191.37,191.36,5.2257525]
[1760885502241,0.92,191.37,191.34,5.22629873]
[1760885503156,0.2,191.37,191.34,5.89629873]
[1760885503650,0.72,191.36,191.34,5.22629873]
[1760885503948,0.2,191.37,191.34,5.22629873]
[1760885504152,0.89,191.37,191.34,5.22629873]
[1760885505222,0.2,191.37,191.35,0.69]
[1760885505422,0.2,191.37,191.36,27.23]
[1760885505835,0.2,191.37,191.36,26.54]
[1760885506230,0.89,191.37,191.36,26.54]
[1760885507848,0.89,191.37,191.36,31.7657525]
[1760885508441,0.2,191.37,191.36,31.7657525]
[1760885508932,0.2,191.37,191.35,5.2260256]
[1760885509132,0.2,191.37,191.36,26.54]
[1760885509340,0.2,191.37,191.36,27.23]
[1760885511129,0.2,191.37,191.36,31.7657525]
[1760885511335,0.2,191.37,191.36,32.4557525]
[1760885515550,0.2,191.37,191.36,31.7657525]
[1760885516458,0.89,191.37,191.34,5.22627801]
[1760885516758,0.89,191.37,191.36,26.54]
[1760885516759,0.2,191.37,191.36,26.54]
[1760885517637,0.2,191.37,191.36,31.7657525]
[1760885517837,0.2,191.37,191.36,32.4557525]
[1760885518754,0.2,191.37,191.36,31.7657525]
[1760885518961,0.89,191.37,191.36,31.7657525]
[1760885519664,0.89,191.37,191.36,5.2257525]
[1760885520354,0.89,191.37,191.34,18.29204556]
[1760885520553,0.2,191.37,191.35,26.54]
[1760885520758,0.2,191.37,191.35,27.23]
[1760885520958,0.2,191.37,191.36,26.54]
[1760885521347,0.2,191.37,191.36,27.23]
[1760885521868,0.2,191.37,191.36,32.4557525]
[1760885527549,0.2,191.37,191.36,31.7657525]
[1760885528365,0.2,191.37,191.36,31.7457525]
[1760885528559,0.2,191.37,191.36,32.4357525]
[1760885530851,0.87,191.37,191.36,31.7457525]
[1760885531047,0.2,191.37,191.36,32.4257525]
[1760885532251,0.2,191.37,191.36,31.7457525]
[1760885532452,1e-08,191.37,191.36,32.4257525]
[1760885532678,1e-08,191.37,191.36,55.3057525]
[1760885533675,1e-08,191.37,191.36,28.1057525]
[1760885533871,1e-08,191.37,191.36,55.3357525]
[1760885534765,1e-08,191.37,191.34,13.06574683]
[1760885534766,0.66000001,191.37,191.34,13.06574683]
[1760885534969,0.66000001,191.37,191.35,26.52]
[1760885535273,1e-08,191.37,191.35,26.52]
[1760885535774,1e-08,191.37,191.36,0.71]
[1760885536884,1e-08,191.37,191.36,28.8157525]
[1760885537454,1e-08,191.37,191.36,28.1057525]
[1760885537655,1e-08,191.37,191.36,28.8157525]
[1760885541154,1e-08,191.37,191.36,28.1057525]
[1760885541680,1e-08,191.4,191.39,22.88]
[1760885541865,1.25366724,191.43,191.39,49.92249333]
[1760885541866,1e-08,191.43,191.39,49.92249333]
[1760885542064,0.2,191.51,191.48,22.88]
[1760885542268,1e-08,191.51,191.5,5.22193211]
[1760885542464,1e-08,191.53,191.52,22.88]
[1760885542676,1e-08,191.53,191.52,26.52]
[1760885543877,0.66000001,191.53,191.52,26.52]
[1760885544085,1e-08,191.53,191.5,44.79676239]
[1760885544290,1e-08,191.53,191.51,0.71]
[1760885544587,1e-08,191.53,191.5,44.79676239]
[1760885544588,1e-08,191.54,191.5,44.79676239]
[1760885544787,1e-08,191.54,191.52,0.71]
[1760885544958,1e-08,191.54,191.53,26.52]
[1760885545967,1e-08,191.54,191.53,27.23]
[1760885546174,1e-08,191.55,191.53,27.23]
[1760885546476,1e-08,191.55,191.54,5.93084159]
[1760885547458,1e-08,191.57,191.54,18.98294558]
[1760885547684,1e-08,191.57,191.55,0.71]
[1760885547882,1e-08,191.57,191.56,26.52]
[1760885548276,1e-08,191.57,191.56,31.74029651]
[1760885548479,1e-08,191.57,191.56,32.45029651]
[1760885550374,1e-08,191.57,191.56,31.74029651]
[1760885551085,1e-08,191.57,191.56,32.45029651]
[1760885551676,1e-08,191.57,191.56,26.5]
[1760885552292,1e-08,191.57,191.56,27.21]